[Event "CZE-ch U16 Open 2023"]
[Site "Teplice"]
[Date "2023.03.18"]
[Round "9.5"]
[White "Dolensky, Filip"]
[Black "Pelc, Adam"]
[Result "1/2-1/2"]
[ECO "C42"]
[WhiteElo "2108"]
[BlackElo "1871"]
[Annotator "TA"]
[PlyCount "95"]
[EventDate "2023.03.09"]
[EventType "swiss"]
[EventCountry "CZE"]
[SourceTitle "playchess.com"]
[Source "ChessBase"]
[SourceQuality "1"]
[TimeControl "40/5400+30:1800+30"]

{[%evp 9,95,-37,-37,-31,-3,-31,-4,-29,0,-27,12,6,19,-6,0,-12,0,0,18,-7,-4,-10,-12,-8,-4,-37,-49,-72,-10,-59,-49,-49,-23,-87,-72,-88,-94,-92,-38,-36,0,-101,0,-58,0,-170,-165,-200,-189,-185,-184,-171,-172,-155,-184,-169,-169,-193,-193,-268,-192,-193,0,-262,-247,-266,-224,-280,-285,-272,-241,-244,-111,-123,-100,-177,-149,-207,-143,-153,45,38,196,0,37,-13,-9,-113]} 1. e4 {[%emt 0:02:43]} e5 {[%emt 0:00:35]} 2. Nf3 {[%emt 0:00:19]} Nf6 {[%emt 0:00:43]} 3. d3 {[%emt 0:00:05]} Nc6 {[%emt 0:01:24]} 4. Nbd2 {[%emt 0:00:06]} Bc5 {[%emt 0:01:50]} 5. h3 {[%emt 0:00:16]} d5 {[%emt 0:04:41]} 6. c3 {[%emt 0:01:11] C44: Ponziani Opening and Scotch Gambit.} a6 {[%emt 0:05:37]} 7. Qc2 {[%emt 0:00:05]} Be6 {[%emt 0:06:56]} 8. Be2 {[%emt 0:00:15]} h6 {[%emt 0:01:56]} 9. Nf1 {[%emt 0:00:49]} Qd7 {[%emt 0:08:13] [#]} 10. b4 $146 {[%emt 0:00:57]} ({Predecessor:} 10. Bd2 Bb6 11. Ng3 O-O-O 12. b4 g5 13. Nh2 dxe4 14. dxe4 Qxd2+ 15. Qxd2 Bxf2+ 16. Kxf2 Rxd2 {0-1 Egreteau,E (2050)-Le Goff,R (1882) Pornic op 2008 (1)}) 10... Bd6 {[%emt 0:01:00]} 11. a3 {[%emt 0:00:46]} b5 {[%emt 0:06:51]} 12. Ng3 {[%emt 0:08:00]} O-O {[%emt 0:04:33]} 13. O-O {[%emt 0:00:49]} Rfb8 {[%emt 0:02:38]} (13... a5 $5 {[%cal Ra5b4]}) 14. Bb2 {[%emt 0:04:56]} a5 {[%emt 0:03:12]} 15. Rac1 {[%emt 0:03:49]} axb4 {[%emt 0:06:12]} 16. cxb4 {[%emt 0:01:11]} Ra6 {[%emt 0:00:12]} 17. Qd2 {[%emt 0:19:19]} d4 {[%emt 0:08:26]} 18. Bd1 {[%emt 0:04:19]} Kh7 {[%emt 0:03:41]} (18... Rba8 $17) 19. Re1 {[%emt 0:00:47]} (19. Nh4 $1 $11) 19... Ng8 {[%emt 0:00:54]} (19... Rba8 $5 {[%cal Ra6a3]}) 20. Nh2 {[%emt 0:03:55][%cal Of2f4]} Nge7 {[%emt 0:03:46]} 21. Ng4 {[%emt 0:03:49]} (21. Nh5 $11 {keeps the balance.}) 21... Ng6 $17 {[%emt 0:01:30]} 22. Bf3 {[%emt 0:06:37][%cal Og3f5]} Be7 {[%emt 0:01:20]} 23. Qe2 {[%emt 0:08:21][%cal Og3f5]} Bg5 {[%emt 0:01:42]} (23... Rba8 $17 {aiming for ...Rxa3.} 24. Nf5 h5) 24. Rc5 $15 {[%emt 0:02:40]} Be7 {[%emt 0:02:35]} (24... f6 $15) 25. Rcc1 $17 {[%emt 0:01:49][%cal Og3f5]} Bg5 {[%emt 0:00:30]} 26. Rc5 {[%emt 0:00:06][%cal Og3f5]} Be7 {[%emt 0:00:34]} (26... Bd8 $15) 27. Rec1 $2 {[%emt 0:05:33] [#]} Nf4 $36 {[%emt 0:00:32][%mdl 2048] Black is in control.} 28. Qd2 {[%emt 0:01:59]} Bxc5 {[%emt 0:01:28]} 29. Rxc5 {[%emt 0:00:09]} f6 {[%emt 0:00:45]} 30. Ne2 {[%emt 0:02:48]} Ng6 {[%emt 0:01:17]} 31. Ng3 {[%emt 0:03:04]} Nce7 {[%emt 0:02:14]} 32. Nh5 {[%emt 0:01:06]} Ng8 {[%emt 0:01:31]} 33. Qc2 {[%emt 0:00:07][%cal Oh5f6]} c6 {[%emt 0:00:29]} 34. Ng3 {[%emt 0:00:49]} (34. Be2 {was worth a try.}) 34... Nh4 {[%emt 0:03:23]} 35. Be2 {[%emt 0:00:37]} Ng6 {[%emt 0:02:56]} (35... Qd6 $142 36. Qd2 Ng6) 36. Bf3 $1 {[%emt 0:00:16]} Nf8 {[%emt 0:02:57]} 37. Qd2 {[%emt 0:03:19]} Qe7 {[%emt 0:01:11]} 38. Qc1 {[%emt 0:01:08]} Rc8 {[%emt 0:00:43]} 39. Nf5 {[%emt 0:00:50]} Bxf5 {[%emt 0:01:32]} 40. exf5 {[%emt 0:00:01]} Qd7 {[%emt 0:01:57]} (40... Nd7 $19 41. Rxb5 Ra7) 41. Be4 $17 {[%emt 0:30:49]} Ne7 {[%emt 0:32:22][%cal Bg8e7,Be7d5,Bd5f4][%mdl 32]} 42. Qd1 {[%emt 0:02:19]} (42. f4 $17 {was called for.} exf4 43. Qxf4) 42... Nd5 {[%emt 0:02:19]} (42... Nxf5 $2 43. Nxf6+ gxf6 44. Qg4 $18) 43. Qc2 {[%emt 0:02:28]} (43. Qc1 $17 Raa8 44. g3) 43... Nf4 {[%emt 0:00:00]} 44. Kh2 {[%emt 0:00:00]} Qd6 $2 {[%emt 0:00:00]} ({Better is} 44... Rd8 $17 {White must now prevent ...Qd6.} 45. Bc1 Qd6) 45. g3 $14 {[%emt 0:00:00]} h5 $2 {[%emt 0:00:00] [#]} ({Black should try} 45... Nxd3 $14 46. Qxd3 Nd7) 46. gxf4 $2 {[%emt 0:00:00]} ({White has to play} 46. Nxe5 $1 $18 Nxh3 47. Nf3) 46... hxg4 {[%emt 0:00:00]} 47. hxg4 {[%emt 0:00:00]} (47. fxe5 $14 fxe5 48. Qe2) 47... exf4 $11 {[%emt 0:00:00] ...Nd7 would be deadly.} 48. f3 {[%emt 0:00:00] Weighted Error Value: White=0.28 (precise) /Black=0.39} (48. Kg2 $11) 1/2-1/2

[Event "CZE-ch U16 Open 2023"]
[Site "Teplice"]
[Date "2023.03.18"]
[Round "9.6"]
[White "Hladky, Tadeas"]
[Black "Werner, Hong Quan Dan"]
[Result "1-0"]
[ECO "B31"]
[WhiteElo "1973"]
[BlackElo "2085"]
[Annotator "TA"]
[PlyCount "107"]
[EventDate "2023.03.09"]
[EventType "swiss"]
[EventCountry "CZE"]
[SourceTitle "playchess.com"]
[Source "ChessBase"]
[SourceQuality "1"]
[TimeControl "40/5400+30:1800+30"]

{[%evp 15,107,14,51,19,25,10,29,23,86,83,90,95,125,119,137,116,140,96,111,101,131,129,126,106,116,118,110,102,163,157,143,138,142,152,147,147,139,152,149,162,233,219,226,222,230,231,234,227,231,231,212,181,212,212,215,214,211,211,211,204,222,237,404,396,610,602,1011,1008,910,875,1132,1275,1141,1137,984,481,1607,1341,29977,29978,29978,29979,29979,29980,29980,29981,29987,29988,29989,29989,29990,29990,29995,29996]} 1. e4 {[%emt 0:00:03]} c5 {[%emt 0:00:11]} 2. Nf3 {[%emt 0:00:05]} Nc6 {[%emt 0:00:10]} 3. Bb5 {[%emt 0:00:04]} g6 {[%emt 0:00:08]} 4. O-O {[%emt 0:00:04]} Nf6 {[%emt 0:00:34]} 5. Re1 {[%emt 0:01:06]} Bg7 {[%emt 0:00:16]} 6. e5 {[%emt 0:00:05]} Nd5 {[%emt 0:00:13]} 7. Nc3 {[%emt 0:00:05]} Nc7 {[%emt 0:01:09]} 8. Bxc6 {[%emt 0:00:05]} bxc6 {[%emt 0:07:07]} 9. d3 {[%emt 0:03:17] B31: Sicilian: 2...Nc6 3 Bb5 g6.} O-O {[%emt 0:04:54]} 10. Be3 {[%emt 0:00:37]} Ne6 {[%emt 0:02:09]} 11. Qd2 {[%emt 0:03:23] White has an edge.} d5 {[%emt 0:07:56] [#]} (11... d6 $11 {remains equal.}) 12. Na4 $146 {[%emt 0:09:10]} ({Predecessor:} 12. Bh6 Bb7 13. b3 Ba6 14. Rad1 Qc7 15. Na4 c4 16. d4 Bb5 17. Nc5 Nxc5 18. dxc5 {1-0 Adhiban,B (2303)-Prince,B (1878) Asia-ch U20 New Delhi 2006 (1.11)}) 12... d4 {[%emt 0:04:35]} 13. Bh6 {[%emt 0:01:16]} f6 {[%emt 0:01:54]} 14. Bxg7 {[%emt 0:01:31]} Kxg7 {[%emt 0:00:12]} 15. exf6+ {[%emt 0:01:55]} exf6 {[%emt 0:00:24]} 16. b3 {[%emt 0:01:06]} Qd6 {[%emt 0:04:24]} 17. Re4 {[%emt 0:07:24]} Bd7 {[%emt 0:01:31]} 18. Rae1 {[%emt 0:02:08]} (18. Rh4 g5 19. Re4 Be8 $14) 18... Rfe8 {[%emt 0:01:37]} 19. h3 {[%emt 0:01:53]} (19. Rh4 Kg8 $14) 19... c4 {[%emt 0:01:18]} 20. dxc4 {[%emt 0:04:03]} (20. bxc4 c5 21. Qa5 (21. Rh4 $2 g5 $19) 21... Qc6 $14) (20. Rh4 $6 g5 21. Rxe6 (21. Rhe4 c3 $17) 21... Bxe6 22. Nxg5 Bf5 $11) 20... c5 {[%emt 0:00:29]} 21. Qa5 {[%emt 0:05:54]} (21. Rh4 g5 22. Rhe4 Nf4 $14) 21... Bc6 {[%emt 0:06:24] [#]} (21... Kf7 $16 {might work better.}) 22. Rxe6 $1 $18 {[%emt 0:01:32][%mdl 576] Deflection} Rxe6 {[%emt 0:00:22]} 23. Rxe6 {[%emt 0:00:04]} (23. Nxc5 $6 Rxe1+ 24. Nxe1 Re8 $11) 23... Qxe6 {[%emt 0:00:06]} 24. Qc7+ {[%emt 0:00:14]} Kg8 {[%emt 0:08:30] ...Bxa4 would be deadly.} 25. Nxc5 {[%emt 0:01:40]} Qe8 {[%emt 0:00:10]} 26. Nxd4 $40 {[%emt 0:01:15][%mdl 128] White wants a kill. White is much more active. Excellent horsemanship.} Rc8 {[%emt 0:00:11]} 27. Qd6 $1 {[%emt 0:01:12]} (27. Qxa7 $2 Qe1+ 28. Kh2 Qe5+ 29. Kg1 Qxd4 $19) 27... Qe1+ {[%emt 0:02:16]} (27... Kf7 $142 28. Nde6 Qe7) 28. Kh2 {[%emt 0:00:26]} Qe5+ {[%emt 0:00:22]} 29. Qxe5 {[%emt 0:00:05]} fxe5 {[%emt 0:00:04]} 30. Nxc6 {[%emt 0:00:55]} Rxc6 {[%emt 0:00:04][%mdl 4096] Endgame KR-KN} 31. Ne4 {[%emt 0:01:17]} Kf7 {[%emt 0:02:23]} 32. Kg3 {[%emt 0:01:04]} Rc7 {[%emt 0:00:48]} 33. Nc3 {[%emt 0:17:28]} Ke6 {[%emt 0:01:06]} 34. Kf3 {[%emt 0:00:06]} h6 {[%emt 0:07:07]} 35. Nd5 {[%emt 0:01:33]} Rf7+ {[%emt 0:00:40]} 36. Ke3 {[%emt 0:00:05]} g5 {[%emt 0:01:38]} 37. f3 {[%emt 0:03:11]} h5 {[%emt 0:00:11]} 38. Ke4 {[%emt 0:05:37]} Rg7 $2 {[%emt 0:02:18]} (38... g4 {is a better defense.} 39. hxg4 (39. fxg4 Rf2 $18) 39... Rg7) 39. c5 $1 {[%emt 0:08:28][%cal Bc4c5,Bc5c6,Bc6c7][%mdl 32] Black must now prevent c6.} g4 {[%emt 0:00:30]} (39... Kd7 $142 40. Kxe5 h4) 40. hxg4 {[%emt 0:00:05] c6 is the strong threat.} hxg4 {[%emt 0:00:05] [#]} 41. c6 $1 {[%emt 0:30:13]} gxf3 {[%emt 0:33:19] [#]} 42. c7 $1 {[%emt 0:01:11]} ({And not} 42. gxf3 Rg2 $11) 42... Kd7 {[%emt 0:04:36]} 43. gxf3 {[%emt 0:01:12]} Rg2 {[%emt 0:00:25]} 44. c4 {[%emt 0:02:10][%cal Bc2c4,Bc4c5,Bc5c6][%mdl 32]} ({Less strong is} 44. Kxe5 Re2+ 45. Kd4 Rxc2 $11) 44... Re2+ {[%emt 0:01:13]} 45. Kf5 {[%emt 0:01:23] And now b4 would win.} Rxa2 {[%emt 0:00:26]} (45... Rf2 $142 46. Kxe5 Rxf3) 46. Kxe5 {[%emt 0:00:15]} Ra3 {[%emt 0:00:58]} 47. c5 {[%emt 0:02:42] White mates.} Ra6 {[%emt 0:04:11]} 48. b4 {[%emt 0:05:30][%cal Bb3b4,Bb4b5,Bb5b6][%mdl 32]} Re6+ {[%emt 0:01:35]} 49. Kd4 {[%emt 0:00:33]} a6 {[%emt 0:05:19]} 50. f4 {[%emt 0:00:22][%cal Bf3f4,Bf4f5][%mdl 32]} Kc8 {[%emt 0:06:33]} 51. f5 {[%emt 0:02:02]} Re1 {[%emt 0:00:09]} 52. c6 {[%emt 0:01:22]} a5 {[%emt 0:01:42]} 53. b5 {[%emt 0:00:48]} a4 {[%emt 0:01:26]} 54. b6 {[%emt 0:00:27] Black got outplayed after the opening.   Weighted Error Value: White=0.04 (flawless) /Black=0.38} 1-0

[Event "CZE-ch U16 Open 2023"]
[Site "Teplice"]
[Date "2023.03.18"]
[Round "9.7"]
[White "Simunek, Jakub Simon"]
[Black "Svoboda, Daniel"]
[Result "1-0"]
[ECO "B51"]
[WhiteElo "1970"]
[BlackElo "1748"]
[Annotator "TA"]
[PlyCount "59"]
[EventDate "2023.03.09"]
[EventType "swiss"]
[EventCountry "CZE"]
[SourceTitle "playchess.com"]
[Source "ChessBase"]
[SourceQuality "1"]
[TimeControl "40/5400+30:1800+30"]

{[%evp 10,59,10,8,8,14,3,9,23,18,23,0,10,-2,25,29,31,0,0,-47,-27,-32,-26,-33,0,0,0,-3,29,19,21,40,22,32,214,225,219,216,224,199,269,241,341,300,510,508,687,664,739,731,717,710]} 1. e4 {[%emt 0:00:19]} c5 {[%emt 0:00:08]} 2. Nf3 {[%emt 0:00:05]} d6 {[%emt 0:00:13]} 3. Bb5+ {[%emt 0:00:06]} Nd7 {[%emt 0:00:16]} 4. c3 {[%emt 0:00:19]} Ngf6 {[%emt 0:00:53]} 5. Qe2 {[%emt 0:00:36]} a6 {[%emt 0:00:40]} 6. Ba4 {[%emt 0:00:08]} g6 {[%emt 0:01:19] B51: Sicilian: Moscow Variation (3 Bb5+) without 3...Bd7.} 7. O-O {[%emt 0:00:38]} b5 {[%emt 0:00:40]} 8. Bc2 {[%emt 0:00:05]} Bg7 {[%emt 0:00:18] The position is equal.} 9. d4 {[%emt 0:01:51]} Bb7 {[%emt 0:01:10] was the old line (9...0-0).} 10. Bg5 {[%emt 0:09:52] [#]} Qb6 $146 {[%emt 0:10:43]} ({Predecessor:} 10... O-O 11. Nbd2 e5 12. dxe5 dxe5 13. Rfd1 h6 14. Bxf6 Qxf6 15. Nc4 Rad8 16. Na5 Bc8 {1-0 Feinig,M (2141)-Bauer,T (2228) St Veit op 41st 2022 (6)}) 11. Nbd2 {[%emt 0:06:03]} e6 {[%emt 0:02:30]} 12. a4 {[%emt 0:10:52]} O-O {[%emt 0:07:38]} 13. b3 {[%emt 0:07:59]} Rfc8 {[%emt 0:07:01] [#] Hoping for ...cxd4.} 14. axb5 {[%emt 0:03:22]} (14. Bd3 $11) 14... axb5 {[%emt 0:16:37] And now ...Rxa1 would win.} (14... cxd4 $5 {[%cal Rc8c3]} 15. Nc4 Qxb5 $15) 15. Bd3 {[%emt 0:05:48]} Bc6 {[%emt 0:07:11]} 16. h3 {[%emt 0:07:47]} Ra6 {[%emt 0:04:17]} 17. Rxa6 {[%emt 0:08:57]} Qxa6 {[%emt 0:05:18]} 18. Bf4 Ne8 {[#]} 19. d5 $1 {[%emt 0:02:47][%mdl 64] Deflection} exd5 {[%emt 0:03:03]} 20. exd5 {[%emt 0:00:39]} Bxd5 {[%emt 0:00:35] ...c4 is the strong threat.} 21. Bxb5 {[%emt 0:00:11]} Qb7 {[%emt 0:01:02] Loses the game.} (21... Qa7 $1 $14) 22. Ba6 $18 {[%emt 0:01:19]} Qc7 {[%emt 0:03:44]} 23. Bxc8 {[%emt 0:01:01]} Qxc8 {[%emt 0:00:05]} 24. c4 {[%emt 0:00:28]} Be6 {[%emt 0:01:06]} (24... Bb7 $142 25. Re1 Ndf6) 25. Ng5 {[%emt 0:05:22]} Ne5 {[%emt 0:01:33]} (25... Nf8 $142 26. Qe3 Bd4) 26. Re1 {[%emt 0:03:59]} Nc7 $2 {[%emt 0:04:59]} (26... Bd7 {was worth a try.} 27. Bxe5 Bxe5) 27. Nde4 {[%emt 0:07:08][%cal Bd2e4,Be4d6,Bd6e4][%mdl 32] White is clearly winning.} f6 {[%emt 0:02:19]} 28. Nxd6 {[%emt 0:02:32]} Qa6 {[%emt 0:02:32]} 29. Bxe5 {[%emt 0:02:29]} fxe5 {[%emt 0:01:08]} 30. Nde4 {[%emt 0:00:38] Weighted Error Value: White=0.10 (very precise) /Black=0.58} 1-0

[Event "CZE-ch U16 Open 2023"]
[Site "Teplice"]
[Date "2023.03.18"]
[Round "9.8"]
[White "Slaby, Matej"]
[Black "Tillmann, Stanislav"]
[Result "1/2-1/2"]
[ECO "B14"]
[WhiteElo "1932"]
[BlackElo "1907"]
[Annotator "TA"]
[PlyCount "115"]
[EventDate "2023.03.09"]
[EventType "swiss"]
[EventCountry "CZE"]
[SourceTitle "playchess.com"]
[Source "ChessBase"]
[SourceQuality "1"]
[TimeControl "40/5400+30:1800+30"]

{[%evp 17,115,66,67,13,4,-7,0,-23,-10,-9,-14,-26,0,0,0,-8,-9,-13,-15,-20,-17,-17,-11,-11,0,0,0,0,0,-8,0,-13,-13,-13,-23,-42,-13,-22,-19,-17,-3,-28,-8,-13,-9,-15,-1,-2,0,-16,-6,-9,-9,-9,0,0,0,0,0,0,0,0,0,0,0,0,0,0,0,0,0,0,0,0,0,0,0,0,0,0,0,0,0,0,0,0,0,0,0,0,0,0,0,0,0,0,0,0,0,0]} 1. d4 {[%emt 0:00:03]} Nf6 {[%emt 0:00:06]} 2. c4 {[%emt 0:00:14]} c5 {[%emt 0:02:06]} 3. e3 {[%emt 0:00:42]} cxd4 {[%emt 0:02:18]} 4. exd4 {[%emt 0:00:22]} d5 {[%emt 0:00:06]} 5. Nc3 {[%emt 0:00:27]} e6 {[%emt 0:01:17]} 6. Nf3 {[%emt 0:00:35]} Be7 {[%emt 0:00:41]} 7. Bd3 {[%emt 0:01:43]} O-O {[%emt 0:03:34]} 8. O-O {[%emt 0:00:07]} b6 {[%emt 0:00:14]} 9. cxd5 {[%emt 0:03:01]} Nxd5 {[%emt 0:00:54]} 10. Qe2 {[%emt 0:02:43] D41: Queen's Gambit Declined: Semi-Tarrasch with 5 cxd5.} (10. Nxd5 $14 exd5 11. Bf4) 10... Bb7 $11 {[%emt 0:11:32]} 11. Rd1 {[%emt 0:03:52]} (11. Qe4 $5 g6 $8 12. Bh6 $11) 11... Nd7 {[%emt 0:02:26]} 12. Ne5 {[%emt 0:01:36]} Rc8 {[%emt 0:01:59] Hoping for ...Rxc3.} 13. Nxd5 {[%emt 0:06:34]} Bxd5 {[%emt 0:01:18] [#]} 14. Ba6 $146 {[%emt 0:06:25]} ({Predecessor:} 14. Bf4 Nxe5 15. dxe5 Bg5 16. Qh5 h6 17. Bg3 Qe8 18. Qe2 {1-0 Kierzek,M (2005)-Korinkova,E (1792) Wch Seniors 50 (Women) 26th 2016 (7)}) 14... Rb8 {[%emt 0:07:31]} 15. Bf4 {[%emt 0:04:40]} Nxe5 {[%emt 0:03:00]} 16. dxe5 {[%emt 0:03:27]} Bg5 {[%emt 0:13:16]} 17. Bg3 {[%emt 0:00:57]} Qe7 {[%emt 0:01:45][%cal Ob6b5]} 18. Bd3 {[%emt 0:11:10]} g6 {[%emt 0:02:57]} 19. Be4 {[%emt 0:07:20]} Bxe4 {[%emt 0:01:33]} 20. Qxe4 {[%emt 0:00:03]} Rfd8 {[%emt 0:01:35]} 21. h4 {[%emt 0:01:33]} Bh6 {[%emt 0:01:53][%cal Bg5h6,Bh6f8,Bf8e7][%mdl 32]} 22. Rd6 {[%emt 0:03:56]} Bf8 {[%emt 0:02:14]} 23. Rad1 {[%emt 0:00:57]} Qc7 {[%emt 0:01:03][%mdl 64] [#] Pin} 24. R6d4 {[%emt 0:06:10]} Be7 {[%emt 0:01:57]} 25. h5 {[%emt 0:03:56]} Rxd4 {[%emt 0:00:36]} 26. Qxd4 {[%emt 0:00:05]} Rd8 {[%emt 0:01:13]} (26... Qc2 $5 {[%cal Rb8d8]} 27. h6 Bc5 $11) 27. Qa4 {[%emt 0:00:12]} Rxd1+ {[%emt 0:04:01]} 28. Qxd1 {[%emt 0:00:03][%mdl 4096] Endgame KQB-KQB} Bg5 {[%emt 0:00:51]} 29. Qe2 {[%emt 0:08:57]} Qd7 {[%emt 0:02:50]} 30. hxg6 {[%emt 0:00:33] The position is equal.} hxg6 {[%emt 0:00:06]} 31. b3 {[%emt 0:03:49]} b5 {[%emt 0:06:58]} 32. Kh2 {[%emt 0:01:47]} Qd5 {[%emt 0:01:09]} 33. Qc2 {[%emt 0:01:16]} Kg7 {[%emt 0:04:04]} 34. Qc7 {[%emt 0:01:06]} Qd4 {[%emt 0:01:27]} 35. Qa5 {[%emt 0:04:13]} Bf4 {[%emt 0:04:22]} 36. Bxf4 $1 {[%emt 0:06:13]} Qxf4+ {[%emt 0:00:04] KQ-KQ} 37. Kg1 {[%emt 0:00:11]} Qxe5 {[%emt 0:04:27]} 38. Qxa7 {[%emt 0:00:15]} b4 {[%emt 0:00:49]} 39. g3 {[%emt 0:01:04]} Qd6 {[%emt 0:01:29]} 40. Kg2 {[%emt 0:01:44]} e5 {[%emt 0:00:57]} 41. Qb7 {[%emt 0:31:25]} Qd4 {[%emt 0:32:42]} 42. Qc6 {[%emt 0:00:00]} e4 {[%emt 0:00:00]} 43. Qc2 {[%emt 0:00:00]} e3 {[%emt 0:00:00]} 44. fxe3 $1 {[%emt 0:00:00]} Qxe3 {[%emt 0:00:00]} 45. Qb2+ {[%emt 0:00:00]} Qc3 {[%emt 0:00:00]} 46. Qe2 {[%emt 0:00:00]} Kf6 {[%emt 0:00:00]} 47. Qf2+ {[%emt 0:00:00]} Ke6 {[%emt 0:00:00]} 48. Qe2+ {[%emt 0:00:00]} Kd6 {[%emt 0:00:00]} 49. Qd1+ {[%emt 0:00:00]} Ke5 {[%emt 0:00:00]} 50. Qd8 {[%emt 0:00:00]} Qc6+ {[%emt 0:00:00]} 51. Kh2 {[%emt 0:00:00]} Qc2+ {[%emt 0:00:00]} 52. Kh3 {[%emt 0:00:00]} Qf5+ {[%emt 0:00:00]} (52... Qxa2 53. Qe7+ Kf5 54. Qxf7+ (54. Qxb4 Qf2 $11) 54... Ke5 55. Qe7+ (55. Qxg6 Qxb3 56. Qg5+ Kd4 $17) 55... Kd5 56. Qd7+ (56. Qxb4 Qb1 $16) 56... Ke5 57. Qg7+ Kd5 58. Qd7+ (58. Qxg6 Qe2 $16) 58... Ke5 59. Qe7+ Kd5 60. Qxb4 $16) 53. Kh2 {[%emt 0:00:00]} Qf2+ {[%emt 0:00:00]} 54. Kh3 {[%emt 0:00:00]} Qf1+ {[%emt 0:00:00]} ({Much less strong is} 54... Qxa2 55. Qe7+ Kf5 56. Qxf7+ (56. Qxb4 Ke6 $11) 56... Ke5 57. Qe7+ (57. Qxg6 Qxb3 58. Qg7+ Ke4 $17) 57... Kd5 58. Qxb4 $16) 55. Kh2 {[%emt 0:00:00]} Qf2+ {[%emt 0:00:00]} 56. Kh3 {[%emt 0:00:00]} Qf1+ {[%emt 0:03:30]} ({Don't take} 56... Qxa2 57. Qe7+ Kf5 58. Qxf7+ (58. Qxb4 Qe2 $11) 58... Ke5 59. Qe7+ (59. Qxg6 Qxb3 60. Qg5+ Ke4 $17) 59... Kd5 60. Qxb4 $16) 57. Kh2 {[%emt 0:00:00]} Qf2+ {[%emt 0:00:59]} 58. Kh3 {An even fight not without its subleties.   Weighted Error Value: White=0.06 (flawless) /Black=0.04 (flawless)} 1/2-1/2

[Event "CZE-ch U16 Open 2023"]
[Site "Teplice"]
[Date "2023.03.18"]
[Round "9.9"]
[White "Davidek, Zdenek"]
[Black "Hozda, Max"]
[Result "1-0"]
[ECO "A80"]
[WhiteElo "1957"]
[BlackElo "2067"]
[Annotator "TA"]
[PlyCount "29"]
[EventDate "2023.03.09"]
[EventType "swiss"]
[EventCountry "CZE"]
[SourceTitle "playchess.com"]
[Source "ChessBase"]
[SourceQuality "1"]
[TimeControl "40/5400+30:1800+30"]

{[%evp 9,29,58,75,72,83,83,85,85,93,83,105,98,118,125,123,116,328,330,321,320,423,451]} 1. d4 {[%emt 0:00:02]} f5 {[%emt 0:01:11]} 2. Bg5 {[%emt 0:00:22]} Nf6 {[%emt 0:01:03]} 3. Bxf6 {[%emt 0:01:23]} exf6 {[%emt 0:00:23]} 4. c4 {[%emt 0:00:22]} b6 {[%emt 0:06:39]} 5. Nc3 {[%emt 0:02:53]} Bb7 {[%emt 0:01:01]} 6. e3 {[%emt 0:02:45] A80: Dutch Defence: Unusual White second moves.} g6 {[%emt 0:09:58] [#]} 7. h4 $146 {[%emt 0:03:21]} ({Predecessor:} 7. Nf3 Qe7 8. Be2 Bh6 9. O-O O-O 10. Re1 Nc6 11. Qd2 Nd8 12. Rad1 Nf7 13. d5 {½-½ Navickaite,S (1705)-Grzelachowska,G (1969) Radviliskis op 2009 (3)}) 7... h5 {[%emt 0:03:36]} 8. Qc2 {[%emt 0:09:11] White is better.} Kf7 {[%emt 0:02:40]} 9. O-O-O {[%emt 0:02:02]} Kg7 {[%emt 0:03:16]} 10. Bd3 {[%emt 0:12:04]} Na6 {[%emt 0:04:35] [#]} 11. a3 $1 {[%emt 0:00:54] Prevents Nb4.} c6 {[%emt 0:01:00]} ({And not} 11... Bxg2 12. Rh2 Bb7 13. d5) 12. Nge2 {[%emt 0:01:59][%cal Og2g4] g4! would be deadly. White is more active.} Nc7 $2 {[%emt 0:03:05] [#]} (12... Rh6 $16 {was worth a try.}) 13. g4 $1 $18 {[%emt 0:09:58][%mdl 512]} fxg4 {[%emt 0:06:52]} (13... hxg4 $2 14. h5 g5 15. Ng3 $18) 14. Bxg6 {[%emt 0:00:28]} Ne6 {[%emt 0:02:54]} 15. Ng3 {[%emt 0:03:59] Weighted Error Value: White=0.01 (flawless) /Black=0.41} ({Not} 15. Qf5 Kg8 16. Ne4 (16. Bxh5 Ng7 $14) 16... Be7 17. Bxh5 Ng7 18. Qxg4 f5 $18) 1-0